Cogmind - Beta 14 @@@ ROGUE MODE // 2024.10.20 @ 22:33:43 Player: Fire Result: Destroyed by G-47 Trooper with Particle Gun Performance ------------- Evolutions (0) 0 Regions Visited (1) 200 Robots Destroyed (10) 50 Value Destroyed (232) 232 Prototype IDs (0) 0 Alien Tech Used (0) 0 Bonus (0) 0 TOTAL SCORE: 482 Bonus ------- None Cogmind --------- Core Integrity 0/250 Matter 277/300 Energy 100/100 System Corruption 1% Temperature Cool (18) Movement Core (1350) Ox26 Location -10/Materials Parts ------- > --- POWER (1) -------- (None) > --- PROPULSION (2) --- (None) > --- UTILITY (2) ------ Huge Storage Unit > --- WEAPON (2) ------- (None) > --- INVENTORY (25) --- Ion Engine Light Treads Light Treads Aluminum Leg Aluminum Leg High-capacity Battery (250) Medium Matter Pod (28) Structural Scanner Visual Processing Unit Sensor Array Signal Interpreter Terrain Scanner ECM Suite Small Laser Maul Peak State ------------ > --- POWER ------------ Light Ion Engine > --- PROPULSION ------- Aluminum Leg Aluminum Leg > --- UTILITY ---------- Small Storage Unit Seismic Detector > --- WEAPON ----------- Assault Rifle Heavy Hammer > --- INVENTORY -------- Ion Engine Light Treads Light Treads Structural Scanner Visual Processing Unit Small Laser Assault Rifle Maul [Rating: 9] Favorites ----------- Power Ion Engine Engine Ion Engine Propulsion Compact Wheel Treads Light Treads Leg Aluminum Leg Wheel Compact Wheel Utility Seismic Detector Device Seismic Detector Storage Huge Storage Unit Weapon Assault Rifle Ballistic Gun Assault Rifle Impact Weapon Heavy Hammer Build | -11 -10 ------- Run | Yrd Mat Slots Evolved . | . . Power . | . . Propulsion . | . . Utility . | . . Weapon . | . . Parts Attached 16 | 4 12 Power 2 | 1 1 Engine 2 | 1 1 Core . | . . Reactor . | . . Propulsion 6 | 2 4 Treads 2 | . 2 Leg 2 | 2 . Wheel 2 | . 2 Hover . | . . Flight . | . . Utility 4 | 1 3 Device 2 | . 2 Storage 2 | 1 1 Processor . | . . Hackware . | . . Protection . | . . Artifact . | . . Weapon 4 | . 4 Energy Gun . | . . Energy Cannon . | . . Ballistic Gun 3 | . 3 Ballistic Cannon . | . . Launcher . | . . Special Weapon . | . . Impact Weapon 1 | . 1 Slashing Weapon . | . . Piercing Weapon . | . . Special Melee Weapon . | . . Unidentified Prototypes . | . . Parts Lost 7 | . 7 Power 1 | . 1 Propulsion 2 | . 2 Utility 1 | . 1 Weapon 3 | . 3 Highest Loss Streak 7 | . 7 To Critical Strikes . | . . Average Slot Usage (%) 92 | . 92 Engine 13 | . 13 Treads 4 | . 4 Leg 7 | . 7 Wheel 14 | . 14 Device 12 | . 12 Storage 14 | . 14 Ballistic Gun 12 | . 12 Impact Weapon 12 | . 12 Peak Build Rating 9 | 4 9 Average Rating 7 | 2 8 On Entrance 2 | . 4 Naked Turns . | . . Heaviest Build 91 | 8 91 Greatest Support 40 | 20 40 Greatest Overweight (x) 27 | 2 27 Average Overweight (x) 1 | . 1 Largest Inventory Capacity 25 | 8 25 Average Capacity 19 | 7 20 Most Carried 16 | 6 16 Average Carried 11 | 4 11 Final Capacity 25 | 8 25 Final Carried 15 | 6 15 Class Distribution -------------------- 100% | Mutant Dominant Class ---------------- Mutant | -10/Materials Resources | -11 -10 ----------- Run | Yrd Mat Matter Collected 450 | 240 210 Remotely . | . . Salvage Created 267 | . 267 Parts 27 | . 27 Haulers Intercepted . | . . Recyclers Shooed . | . . Parts Field Recycled . | . . Retrieved Matter . | . . Parts Self-Destructed . | . . Prevented . | . . Kills | -11 -10 ------- Run | Yrd Mat Combat Hostiles Destroyed 8 | . 8 Melee 2 | . 2 Guns 6 | . 6 Classes Destroyed 3 | . 3 Watcher 2 | . 2 Swarmer 3 | . 3 Grunt 5 | . 5 Best Kill Streak 3 | . 3 Combat Bots Only 3 | . 3 Max Kills in Single Turn 1 | . 1 Gunslinging . | . . Exploded . | . . Melee 1 | . 1 Uniques/NPCs Destroyed . | . . Combat | -11 -10 -------- Run | Yrd Mat Hostile Shots Fired 107 | . 107 Missed 31 | . 31 Damage Taken 996 | . 996 Core 251 | . 251 Absorbed by Shields . | . . Core Remaining (%) 100 | 100 . Volleys Fired 39 | . 39 Largest 2 | . 2 Hottest 40 | . 40 Shots Fired 40 | . 40 Gun 40 | . 40 Cannon . | . . Launcher . | . . Special . | . . Kinetic 40 | . 40 Thermal . | . . Explosive . | . . Electromagnetic . | . . Robot Hit Streak 6 | . 6 Robot Miss Streak 3 | . 3 Penetration Max . | . . Secondary Targets . | . . Shots Hit Robots 28 | . 28 Core Hits 13 | . 13 Critical Kills . | . . Critical Parts Destroyed 1 | . 1 Critical Strikes 1 | . 1 Smash 1 | . 1 Melee Attacks 10 | . 10 Impact 10 | . 10 Slashing . | . . Piercing . | . . Sneak Attacks . | . . Combat Hostiles . | . . Follow-up Attacks . | . . Damage Inflicted 467 | . 467 Guns 288 | . 288 Cannons . | . . Explosions . | . . Melee 179 | . 179 Ramming . | . . Kinetic 288 | . 288 Thermal . | . . Explosive . | . . Electromagnetic . | . . Impact 179 | . 179 Slashing . | . . Piercing . | . . Highest Corruption 1 | . 1 Average Corruption 1 | . 1 Corruption Purged . | . . Corruption Blocked . | . . Effects 2 | . 2 Message Errors 1 | . 1 Data Loss (minor) 1 | . 1 Overload Shots . | . . Overflow Damage 36 | . 36 Projectiles . | . . Explosions . | . . Melee 36 | . 36 Knockbacks . | . . Impact . | . . Kinetic . | . . Secondary . | . . Self-Inflicted Damage . | . . Shots . | . . Rammed . | . . Targets Rammed . | . . Kicked . | . . Crushed . | . . Highest Temperature 21 | . 21 Average Temperature 8 | . 8 Received Heat Transfer 555 | . 555 Siege Activations . | . . Robots Corrupted . | . . Combat Hostiles . | . . Parts Fried 2 | . 2 Impact Corruptions 1 | . 1 Robots Melted . | . . Combat Hostiles . | . . Parts Melted . | . . Heat Transferred . | . . Parts Sabotaged . | . . Parts Stolen . | . . Parts Stripped . | . . Power Chain Reactions . | . . Alert | -11 -10 ------- Run | Yrd Mat Peak Influence 142 | . 142 Initial . | . . Average 71 | . 75 Maximum Alert Level . | . . Low Security (%) 100 | 100 100 Level 1 . | . . Level 2 . | . . Level 3 . | . . Level 4 . | . . Level 5 . | . . High Security . | . . Max Security . | . . Squads Dispatched 3 | . 3 Investigation 1 | . 1 Extermination . | . . Reinforcement 2 | . 2 Assault . | . . Garrison . | . . Intercept . | . . Searches Triggered . | . . Construction Impeded . | . . Haulers Reinforced . | . . Active Scanning Responses . | . . Cargo Convoy Interrupts . | . . Stealth | -11 -10 --------- Run | Yrd Mat Distress Signals . | . . Communications Jammed . | . . Distress Signals . | . . Times Spotted 14 | . 14 Peak Tracking Total 4 | . 4 Tactical Retreats . | . . Traps | -11 -10 ------- Run | Yrd Mat Traps Triggered 1 | . 1 Indirectly . | . . Trap Hack Attempts . | . . Triggered . | . . Disarmed . | . . Reprogrammed . | . . Reused . | . . Traps Extracted . | . . Installed . | . . Triggered . | . . Machines | -11 -10 ---------- Run | Yrd Mat Machines Disabled . | . . Max in Single Turn . | . . Machines Repaired . | . . Machines Dismantled . | . . Machines Sabotaged . | . . Overloaded Fab Kills . | . . Hacking | -11 -10 --------- Run | Yrd Mat Machines Accessed 4 | . 4 Terminals 2 | . 2 Fabricators . | . . Repair Stations . | . . Recycling Units 2 | . 2 Scanalyzers . | . . Garrison Access . | . . Total Hacks 21 | . 21 Successful 15 | . 15 Failed 6 | . 6 Catastrophic 3 | . 3 Database Lockouts . | . . Manual 8 | . 8 Terminals 9 | . 9 Fabricators . | . . Repair Stations . | . . Recycling Units 12 | . 12 Scanalyzers . | . . Garrison Access . | . . Terminal Hacks 3 | . 3 Emergency Access Points 1 | . 1 Locate Traps 1 | . 1 Zone Layout 1 | . 1 Fabricator Hacks . | . . Repair Station Hacks . | . . Recycling Unit Hacks 7 | . 7 Process 1 | . 1 Report Inventory 4 | . 4 Retrieve Components 2 | . 2 Scanalyzer . | . . Garrison Access Hacks . | . . Unauthorized Hacks 5 | . 5 Terminals 1 | . 1 Skim 1 | . 1 Fabricators . | . . Repair Stations . | . . Recycling Units 4 | . 4 Monitor 1 | . 1 Recyclers 2 | . 2 Tunnel 1 | . 1 Scanalyzers . | . . Garrison Access . | . . Data Cores Recovered . | . . Used . | . . Hacking Detections 3 | . 3 Full Trace Events 1 | . 1 Feedback Events . | . . Feedback Blocked . | . . Robot Schematics Acquired . | . . Robots Built . | . . Authchips . | . . Time . | . . Total Robot Build Rating . | . . Part Schematics Acquired . | . . Parts Built . | . . Authchips . | . . Time . | . . Total Part Build Rating . | . . Parts Repaired . | . . Time . | . . Parts Recycled . | . . Recycled Matter . | . . Retrieved Matter . | . . Retrieved Components 9 | . 9 Parts Scanalyzed . | . . Part Schematics Acquired . | . . Parts Damaged . | . . Bothacking | -11 -10 ------------ Run | Yrd Mat Used RIF Installer . | . . Robots Hacked . | . . Non-combat . | . . Combat . | . . Robot Hacks Applied . | . . Relay Couplers Released . | . . Fabnet Peak Effective % . | . . Robots Rewired . | . . Allies Hacked . | . . Hacks Repelled . | . . Allies | -11 -10 -------- Run | Yrd Mat Total Allies . | . . Largest Group . | . . Highest-Rated Group . | . . Highest-Rated Ally . | . . Total Orders . | . . Ally Attacks . | . . Total Damage . | . . Kills . | . . Allies Corrupted . | . . Allies Melted . | . . Intel | -11 -10 ------- Run | Yrd Mat Robot Analysis Total . | . . Derelict Logs Recovered . | . . Drone Launches . | . . Drone Recoveries . | . . Exploration | -11 -10 ------------- Run | Yrd Mat Turns Passed 778 | 48 730 Spaces Moved 422 | 34 388 Core 15 | 13 2 Treads 34 | . 34 Legs 143 | 21 122 Wheels 230 | . 230 Hover . | . . Flight . | . . Fastest Speed 50 | 50 120 Average Speed 146 | 102 150 Slowest Speed 1400 | 150 1400 Overloaded Moves . | . . Propulsion Burnouts . | . . Robots Hopped . | . . Cave-ins Triggered . | . . Exploration Rate (%) 24 | 3 45 Regions Visited 1 Branch Regions . Pre-discovered Areas 1 | . 1 Known Exits Taken . | . . Unknown Exits Taken 1 | 1 . Scrap Searched . | . . Spaces Dug 2 | . 2 Terrain Destroyed 2 | . 2 Melee 2 | . 2 Projectile . | . . AOE . | . . Terrain Rammed . | . . Walls Destroyed . | . . Machines Disabled . | . . Actions | -11 -10 --------- Run | Yrd Mat Total 525 | 47 478 Wait 11 | . 11 Move 421 | 33 388 Hop . | . . Pick Up 25 | 10 15 Fast Attach . | . . Attach 9 | 4 5 Detach . | . . Swap 7 | . 7 Drop 3 | . 3 Fire 39 | . 39 Melee 10 | . 10 Ram . | . . Kick . | . . Crush . | . . Escape Stasis . | . . Rewire . | . . Trap . | . . Miscellaneous . | . . Route ------- -11/Scrapyard -10/Materials (discovered 2 exits: [*Mat] / [*Min]) History --------- Turn | Location | Event 9 | -11/Scrapyard | Discovered new exit (range 16) 49 | -11/Scrapyard | Entered Materials 223 | -10/Materials | Discovered new exit (range 8) 303 | -10/Materials | Build established: Mutant 431 | -10/Materials | Discovered new exit (range 14) 761 | -10/Materials | Core integrity fell below 50% 774 | -10/Materials | Core integrity fell below 20% 779 | -10/Materials | Destroyed by G-47 Trooper with Particle Gun Last Messages --------------- U-05 Engineer lays Concrete. K-01 Serf collects debris. U-05 Engineer lays Concrete. K-01 Serf collects debris. U-05 Engineer lays Concrete. K-01 Serf collects debris. U-05 Engineer lays Concrete. K-01 Serf collects debris. U-05 Engineer lays Concrete. K-01 Serf collects debris. U-05 Engineer lays Concrete. K-01 Serf collects debris. U-05 Engineer lays Concrete. K-01 Serf collects debris. U-05 Engineer lays Concrete. Hvy. Hammer destroyed. K-01 Serf collects debris. U-05 Engineer lays Concrete. K-01 Serf collects debris. U-05 Engineer lays Concrete. Map ----- +----------------------------------------------------+ | ?????????????????????????????????????????????????? | | ?????????????????????????????????????????????????? | | ?????????????????????????????????????????????????? | | ?????????????????????????????????????????????????? | | ####?????????????????????????????????????????????? | | #?????????????????????????????????????????????? | | #?????????????????????????????????????????????? | | #?????????????????????????????????????????????? | | "" #?????????????????????????????????????????????? | | "" #????????????????????? ??????????????????????? | | T" #????????????????????? ??????????????????????? | | "" #????????????????????? ???? ?????????????????? | | "" #????????????????????? ??? #???????????????? | | #?????????????????????+#### #???????????????? | | ####????????????????????? = #???????????????? | | #??????????????????#### %[ #???????????????? | | #??????????????????? * #???????????????? | | #??????????????????? ##??????????????? | | #??????????????????? #??????????????? | | #???????????????????## u #??????????????? | | ##????########???????# #??????????????? | | #?????#//== /#???????# k ##+##a?????????? | | #?????#/ ==//#???????? % ?????????? | | #?????# #????????#! gg k ?????????? | | ##???## ##########%*=%! ?????????? | | ##### @ # ##????????????????? | | ################### ??????????? | | #?????????????????????? ??????????? | | #????????????????????????????????????? | | """ ## #????????????????????????????????????? | | """ ###### #????????????????????????????????????? | | """ ####?# #????????????????????????????????????? | | !### #????????????????????????????????????? | | !## #????????????????????????????????????? | | """ !## #????????????????????????????????????? | | """ !## #????????????????????????????????????? | | """ !## #????????????????????????????????????? | | ! !### #????????????????????????????????????? | | ####?# #????????????????????????????????????? | | = #????# ###??????????????????????????????????? | | Y" #????# #??????????????????????????????????? | | "" #????# #??????????????????????????????????? | | ######????# #??????????????????????????????????? | | ??????????# #??????????????????????????????????? | | ??????????# #??????????????????????????????????? | | ??????????# #??????????????????????????????????? | | ??????????#^ #############??????????????????????? | | ??????????# # #??????????????????????? | | ??????????# # =#??????????????????????? | | ??????????# # #??????????????????????? | +----------------------------------------------------+ Best States ------------- Heat Dissipation 25 Energy Generation 10 Energy Capacity 250 Matter Stores 300 Matter Capacity 300 Sight Range 16 Terrain Scan Density 10 Evasion (%) 55 Recoil Reduction 2 Item Schematics ----------------- None Robot Schematics ------------------ None Fabricated ------------ Nothing Alien Tech Used ----------------- None Achievements -------------- Brute Force True Hacker Challenges ------------ None Game ------ Seed DecoyShockPurifier Manual? 0 Play Time 00:22:24 Cumulative 5.0 hours Start 2024.10.17 @ 20:53:39 End 2024.10.20 @ 22:33:43 Sessions 3 Manual Loads 0 Difficulty Rogue Special Mode None Game No. 9 Rogue 9 Adventurer 0 Explorer 0 Win Type - Total 0 Types 0/0/0/0/0/0/0/0/0 Lore% 6 Gallery% 7 Achievement% 8 Wizard Run 0 Options --------- Layout 1 ASCII 0 Keyboard 0 Movement Mouse Keybinds 0 Fullscreen 2 Font 24/Smallcaps Map View 50x35 Zoom Use 93% Tactical HUD 0 Map Filters NONE Filters NONE Steam 1 RUN: 0e2521ce-a004-43dd-b289-00d73fed9adb